Workbook

Sheet GQ für G8
B2: Max Müllermeier | E2: Q2 | N2: =NOW() -> 2023-10-31T13:47:16.400
B3: Berechnung der Gesamtqualifikation ab Abiturjahrgang 2013-G8
C4: Fächergruppe | D4: Fach | E4: Anzurechnende Pflichtkurse | F4: Leistungs kurs=L | G4: Q1.1 | H4: Q1.2 | I4: Q2.1 | J4: Q2.2 | K4: Anzahl Kurse | L4: Summe Punkte | N4: Anzahl eingegebener Noten (35 bis 40) | O4: =COUNT(G5:J18)+COUNT(H16) -> 35 | P4: =IF(OR(O4<35,O4>40),"Geben Sie mind. 35 und höchstens 40 Noten ein!","") ->  | AS4: Eingabekontrolle | AX4: Anzahl | AZ4: Gültigkeit | BC4: Gültigkeit Fächer
B5: 1 | C5: Deutsch | D5: D | E5: Alle 4 Kurse | F5: L | G5: 5 | H5: 5 | I5: 5 | J5: 5 | K5: =IF(F5="L",(COUNT(G5:J5)-COUNTIF(G5:J5,0))*2,COUNT(G5:J5)-COUNTIF(G5:J5,0)) -> 8 | L5: =IF(F5="L",SUM(G5:J5)*2,SUM(G5:J5)) -> 40 | N5: Anzahl Defizite insgesamt (höchstens 7-8): | O5: =COUNTIF($F$5:$J$18,"<5") -> 0 | P5: =IF(COUNTIF(G5:J18,"<5")>7,"Mehr als insgesamt 7, ggf. 8 Defizite (=Kurse unter 5 Punkten) führen zur Nichtzulassung!","") ->  | AS5: =F5 -> L | AT5: =IF(G5="","",G5) -> 5 | AU5: 5 | AV5: 5 | AW5: 5 | AX5: =COUNT(AT5:AW5) -> 4
B6: 2 | C6: Fortgef. Fremdsprache | D6: E | E6: Alle 4 Kurse | G6: 5 | H6: 5 | I6: 5 | J6: 5 | K6: =IF(F6="L",(COUNT(G6:J6)-COUNTIF(G6:J6,0))*2,COUNT(G6:J6)-COUNTIF(G6:J6,0)) -> 4 | L6: 20 | N6: Anzahl LK-Defizite (höchstens 3): | O6: =Z24 -> 0 | P6: =IF(Z24>3,"Mehr als 3 LK-Defizite (=Kurse unter 5 Punkten) führen zur Nichtzulassung!","") ->  | AS6: =F6 -> 0 | AT6: 5 | AU6: 5 | AV6: 5 | AW6: 5 | AX6: =COUNT(AT6:AW6) -> 4 | AZ6: L | BA6: 15 | BC6: E | BD6: F6 | BE6: F8 | BF6: L6
B7: 3 | C7: Kunst oder Musik | D7: KU | E7: Mind. die 2 besten Kurse | G7: 5 | H7: 5 | I7: 5 | J7: 5 | K7: =IF(F7="L",(COUNT(G7:J7)-COUNTIF(G7:J7,0))*2,COUNT(G7:J7)-COUNTIF(G7:J7,0)) -> 4 | L7: 20 | N7: Anzahl Kurse mt 0 Punkten (=nicht zugelassen!): | O7: =COUNTIF($F$5:$J$18,0) -> 0 | P7: =IF(COUNTIF(G5:J18,0)>0,"Kurse mit 0 Punkten führen zur Nichtzulassung!","") ->  | AT7: =IF(G7="","",G7) -> 5 | AU7: =IF(H7="","",H7) -> 5 | AV7: 5 | AW7: 5 | AX7: =IF(COUNT(AT7:AW7)>2,2,COUNT(AT7:AW7)) -> 2 | BA7: 14 | BC7: KU | BD7: MU
B8: 4 | C8: Gesellschaftswissenschaft | D8: PA | E8: Alle 4 Kurse | F8: L | G8: 5 | H8: 5 | I8: 5 | J8: 5 | K8: 8 | L8: 40 | N8: Anzahl angerechneter Kurse (LKx2) | O8: =SUM(K5:K18) -> 43 | P8: =IF(OR(AS16<2,AS16>2),"Markieren Sie genau 2 Fächer als Leistungskursfach!","") ->  | S8: Pflichtanrechnung | AS8: =F8 -> L | AT8: =IF(G8="","",G8) -> 5 | AU8: =IF(H8="","",H8) -> 5 | AV8: =IF(I8="","",I8) -> 5 | AW8: 5 | AX8: =COUNT(AT8:AW8) -> 4 | BA8: 13 | BC8: EK | BD8: GE | BE8: PA | BF8: PL
C9: Ggf. Zusatzkurse Geschichte in Q2 oder Äquivalent aus Q1 | D9: GE | E9: Falls belegt: beide Kurse | I9: 5 | J9: 5 | K9: 2 | L9: 10 | N9: Zwischensumme Punkte | O9: =SUM(L5:L18) -> 215 | P9: =IF(AND($D$9="GE",AX16<30),"Alle Pflicht-Notenfelder gem. Spalte E müssen ausgefüllt sein!",IF(AX16<28,"Alle Pflicht-Notenfelder gem. Spalte E müssen ausgefüllt sein!","")) ->  | S9: =F4 -> Leistungs kurs=L | T9: =G4 -> Q1.1 | U9: =H4 -> Q1.2 | V9: =I4 -> Q2.1 | W9: =J4 -> Q2.2 | X9: Anzahl Kurse | Y9: Summe Punkte | Z9: Anzahl LK-Defizite | AA9: Die zwei besten Noten je Fach | AC9: Summe der zwei besten Noten je Fach: | AE9: Kurse außerhalb der Pflichtanrechnung | AJ9: Die 1 bis 5 besten Kurse außerhalb der Pflichtanrechnung | AO9: 900 | AP9: = | AQ9: 1 | AV9: 5 | AW9: 5 | AX9: =IF($D$9="","",COUNT(AV9:AW9)) -> 2 | BA9: 12 | BD9: GE
C10: Zusatzkurse Sozialwissensch. in Q2 | D10: SW | E10: Beide Kurse | I10: 5 | J10: 5 | K10: 2 | L10: 10 | N10: Durchschnittspunktzahl je Kurs | O10: =O9/O8 -> 5 | P10: =IF(AND(O4>=35,O4<=39),"Sie können weitere Punktzahlen eingeben, wenn diese über dem Durchschnitt liegen.","") -> Sie können weitere Punktzahlen eingeben, wenn diese über dem Durchschnitt liegen. | S10: =IF(NOT(ISBLANK(F5)),F5,"") -> L | T10: =IF(NOT(ISBLANK(G5)),G5,"") -> 5 | U10: =IF(NOT(ISBLANK(H5)),H5,"") -> 5 | V10: =IF(NOT(ISBLANK(I5)),I5,"") -> 5 | W10: =IF(NOT(ISBLANK(J5)),J5,"") -> 5 | X10: =IF(S10="L",(COUNT(T10:W10)-COUNTIF(T10:W10,0))*2,COUNT(T10:W10)-COUNTIF(T10:W10,0)) -> 8 | Y10: =IF(S10="L",SUM(T10:W10)*2,SUM(T10:W10)) -> 40 | Z10: =IF($F5="L",COUNTIF(T10:W10,"<5"),"") -> 0 | AJ10: =LARGE($AE$10:$AH$23,1) -> 5 | AO10: 899 | AP10: = | AQ10: 1 | AV10: 5 | AW10: 5 | AX10: =COUNT(AV10:AW10) -> 2 | BA10: 11 | BD10: SW
B11: 5 | C11: Mathematik | D11: M | E11: Alle 4 Kurse | G11: 5 | H11: 5 | I11: 5 | J11: 5 | K11: 4 | L11: 20 | N11: Endsumme Punkte für die Zulassung (mind. 200) | O11: =IF($O$4<35,0,O10*40) -> 200 | P11: =IF(O11<200,"Für die Zulassung sind mind. 200 Punkte erforderlich!","") ->  | S11: =IF(NOT(ISBLANK(F6)),F6,"") ->  | T11: =IF(NOT(ISBLANK(G6)),G6,"") -> 5 | U11: 5 | V11: 5 | W11: 5 | X11: =IF(S11="L",(COUNT(T11:W11)-COUNTIF(T11:W11,0))*2,COUNT(T11:W11)-COUNTIF(T11:W11,0)) -> 4 | Y11: =IF(S11="L",SUM(T11:W11)*2,SUM(T11:W11)) -> 20 | AJ11: =LARGE($AE$10:$AH$23,2) -> 5 | AO11: 898 | AP11: = | AQ11: 1 | AS11: =F11 -> 0 | AT11: =IF(G11="","",G11) -> 5 | AU11: 5 | AV11: 5 | AW11: 5 | AX11: =COUNT(AT11:AW11) -> 4 | BA11: 10
B12: 6 | C12: Naturwissenschaft | D12: BI | E12: Alle 4 Kurse | G12: 5 | H12: 5 | I12: 5 | J12: 5 | K12: 4 | L12: 20 | N12: =IF(OR(O4<35,O4>40,AND(O4<38,O5>7),O5>8,O6>3,O7>0,O11<200,AS16<2,AS16>2,$AX$17=FALSE),"Nicht zugelassen!","Zugelassen") -> Zugelassen | S12: =IF(NOT(ISBLANK(F7)),F7,"") ->  | T12: =IF(NOT(ISBLANK(G7)),G7,"") -> 5 | U12: 5 | V12: 5 | W12: 5 | X12: =IF(S12="L",(COUNT(T12:W12)-COUNTIF(T12:W12,0))*2,COUNT(T12:W12)-COUNTIF(T12:W12,0)) -> 4 | Y12: =IF(S12="L",SUM(T12:W12)*2,SUM(T12:W12)) -> 20 | AA12: =LARGE(R12:W12,1) -> 5 | AB12: =LARGE(T12:W12,2) -> 5 | AC12: =LARGE(T12:W12,1)+LARGE(T12:W12,2) -> 10 | AE12: =LARGE($T12:$W12,3) -> 5 | AF12: =LARGE($T12:$W12,4) -> 5 | AJ12: =LARGE($AE$10:$AH$23,3) -> 5 | AL12: Berechnnung Abitur-Punktsumme | AO12: 897 | AP12: = | AQ12: 1 | AS12: =F12 -> 0 | AT12: 5 | AU12: 5 | AV12: 5 | AW12: 5 | AX12: =COUNT(AT12:AW12) -> 4 | BA12: 9 | BC12: BI | BD12: CH | BE12: PH
B13: 7 | C13: Religion oder Philosophie oder anderes Ersatzfach | D13: ER | E13: Mind. die 2 besten Kurse | G13: 5 | H13: 5 | I13: 5 | J13: 5 | K13: 4 | L13: 20 | N13: Abiturprüfungsergebnisse | O13: Punkte einfach schriftlich | P13: Punkte einfach mündlich | Q13: Punktsumme je Fach | S13: =IF(NOT(ISBLANK(F8)),F8,"") -> L | T13: 5 | U13: 5 | V13: 5 | W13: 5 | X13: =IF(S13="L",(COUNT(T13:W13)-COUNTIF(T13:W13,0))*2,COUNT(T13:W13)-COUNTIF(T13:W13,0)) -> 8 | Y13: =IF(S13="L",SUM(T13:W13)*2,SUM(T13:W13)) -> 40 | Z13: 0 | AJ13: =LARGE($AE$10:$AH$23,4) -> 5 | AL13: 2s+m/3*5 | AM13: abgerundet | AO13: 896 | AP13: = | AQ13: 1 | AT13: 5 | AU13: 5 | AV13: 5 | AW13: 5 | AX13: =IF(COUNT(AT13:AW13)>2,2,COUNT(AT13:AW13)) -> 2 | BA13: 8 | BC13: ER | BD13: PL | BE13: EK | BF13: GE | BG13: PA
B14: 8 | C14: Ggf. Sport | D14: SP | G14: 5 | K14: 1 | L14: 5 | N14: 1. Abiturfach | O14: 5 | Q14: =AM14 -> 25 | S14: =IF(NOT(ISBLANK(F9)),F9,"") ->  | V14: 5 | W14: 5 | X14: 2 | Y14: 10 | AJ14: =LARGE($AE$10:$AH$23,5) -> 5 | AL14: =IF(P14="",O14*5,(O14*2+P14)/3*5) -> 25 | AM14: =ROUNDDOWN(AL14,0) -> 25 | AO14: 895 | AP14: = | AQ14: 1 | BA14: 7
B15: 9 | C15: Schwerpunktfach: 2. Fremdspr. oder 2. NaWi oder IF | D15: CH | E15: Mind. die 2 Kurse aus Q2 | I15: 5 | J15: 5 | K15: 2 | L15: 10 | N15: 2. Abiturfach | O15: 5 | Q15: =AM15 -> 25 | R15: =IF(AND(Q14<25,Q15<25),"In mindestens 1 LK müssen mindestens 25 Punkte erreicht sein!","") ->  | V15: 5 | W15: 5 | X15: 2 | Y15: 10 | AL15: =IF(P15="",O15*5,(O15*2+P15)/3*5) -> 25 | AM15: =ROUNDDOWN(AL15,0) -> 25 | AO15: 894 | AP15: = | AQ15: 1 | AS15: =F15 -> 0 | AV15: =IF(I15="","",I15) -> 5 | AW15: =IF(J15="","",J15) -> 5 | AX15: =COUNT(AV15:AW15) -> 2 | BA15: 6 | BC15: F6 | BD15: F8 | BE15: L6 | BF15: L0 | BG15: BI | BH15: CH | BI15: PH | BJ15: IF
B16: 10 | C16: Ggf. Projektkurs | D16: PK I | E16: Zählt 2-fach | K16: =(COUNT(H16)-COUNTIF(H16,0))*2 -> 0 | L16: =H16*2 -> 0 | N16: 3. Abiturfach | O16: 5 | Q16: =AM16 -> 25 | R16: =IF(COUNTIF(Q14:Q17,"<25")>2,"In mindestens 2 Prüfungsfächern müssen jeweils mindestens 25 Punkte erreicht sein!","") ->  | T16: 5 | U16: 5 | V16: 5 | W16: 5 | X16: 4 | Y16: 20 | AL16: =IF(P16="",O16*5,(O16*2+P16)/3*5) -> 25 | AM16: =ROUNDDOWN(AL16,0) -> 25 | AO16: 893 | AP16: = | AQ16: 1 | AS16: =COUNTIF(AS5:AS15,"L") -> 2 | AT16: Anzahl L | AW16: Summe Pflichtnoten | AX16: =SUM(AX5:AX15) -> 30 | BA16: 5 | BD16: PK I | BE16: PK II | BF16: PK III
B17: 11 | C17: Ggf. weiteres Grundkursfach | K17: =IF(F17="L",(COUNT(G17:J17)-COUNTIF(G17:J17,0))*2,COUNT(G17:J17)-COUNTIF(G17:J17,0)) -> 0 | L17: =IF(F17="L",SUM(G17:J17)*2,SUM(G17:J17)) -> 0 | N17: 4. Abiturfach | P17: 5 | Q17: =AM17 -> 25 | T17: 5 | U17: 5 | V17: 5 | W17: 5 | X17: 4 | Y17: 20 | AM17: =P17*5 -> 25 | AO17: 892 | AP17: = | AQ17: 1 | AX17: =IF(AND($D$9="",$AX$16=28),"Richtig",IF(AND($D$9="GE",$AX$16=30),"Richtig",FALSE)) -> Richtig | BA17: 4 | BD17: F6 | BE17: F8 | BF17: L6 | BG17: L0 | BH17: KU | BI17: MU | BJ17: EK | BK17: GE | BL17: PA | BM17: PL | BN17: BI | BO17: CH | BP17: PH | BQ17: IF
B18: 12 | C18: Ggf. weiteres Grundkursfach | K18: 0 | L18: 0 | N18: Punktsumme Abiturprüfung in jeweils 5-facher Wertung (mind. 100) | O18: =AM18 -> 100 | Q18: =IF(O18<100,"Für das Bestehen der Abiturprüfung sind mind. 100 Prüfungspunkte erforderlich!","") ->  | T18: 5 | U18: 5 | V18: 5 | W18: 5 | X18: 4 | Y18: 20 | AA18: =LARGE(Q18:W18,1) -> 5 | AB18: =LARGE(T18:W18,2) -> 5 | AC18: =LARGE(T18:W18,1)+LARGE(T18:W18,2) -> 10 | AE18: =LARGE($T18:$W18,3) -> 5 | AF18: =LARGE($T18:$W18,4) -> 5 | AL18: Summe | AM18: =SUM(AM14:AM17) -> 100 | AO18: 891 | AP18: = | AQ18: 1 | BA18: 3 | BD18: F6 | BE18: F8 | BF18: L6 | BG18: L0 | BH18: KU | BI18: MU | BJ18: EK | BK18: GE | BL18: PA | BM18: PL | BN18: BI | BO18: CH | BP18: PH | BQ18: IF
B19: Geben Sie bei den Leistungskursen ein L in Spalte E ein! | N19: =IF(OR(N12="Nicht zugelassen!",AND(Q14<25,Q15<25),COUNTIF(Q14:Q17,"<25")>2,O18<100),"Nicht bestanden!","Bestanden") -> Bestanden | T19: 5 | X19: 1 | Y19: 5 | AE19: =T19 -> 5 | AF19: =U19 ->  | AG19: =V19 ->  | AH19: =W19 ->  | AO19: 890 | AP19: = | AQ19: 1 | BA19: 2
B20: Geben Sie Ihre Halbjahresnoten als Punktzahlen ein! | N20: Gesamtpunktsumme | O20: =ROUND(O11+O18,0) -> 300 | Q20: =IF(O20<300,"Für das Bestehen der Abiturprüfung sind mind. 300 Gesamtpunkte erforderlich!","") ->  | V20: 5 | W20: 5 | X20: 2 | Y20: 10 | AE20: =T20 ->  | AF20: =U20 ->  | AO20: 889 | AP20: = | AQ20: 1 | BA20: 1
B21: Geben Sie bei den Abiturfächern jeweils alle 4 Halbjahresergebnisse ein! | N21: Abiturdurchschnittsnote | O21: =VLOOKUP($O$20,AO9:AQ607,3,FALSE) -> 4 | X21: =(COUNT(U21)-COUNTIF(U21,0))*2 -> 0 | Y21: =U21*2 ->  | AO21: 888 | AP21: = | AQ21: 1 | BA21: 0
T22: =IF(NOT(ISBLANK(G17)),G17,"") ->  | U22: =IF(NOT(ISBLANK(H17)),H17,"") ->  | V22: =IF(NOT(ISBLANK(I17)),I17,"") ->  | W22: =IF(NOT(ISBLANK(J17)),J17,"") ->  | X22: =IF(S22="L",(COUNT(T22:W22)-COUNTIF(T22:W22,0))*2,COUNT(T22:W22)-COUNTIF(T22:W22,0)) -> 0 | Y22: =IF(S22="L",SUM(T22:W22)*2,SUM(T22:W22)) -> 0 | AE22: =T22 ->  | AF22: =U22 ->  | AO22: 887 | AP22: = | AQ22: 1
B23: Zur gesonderten Berechnung der mündl. Abiturnachprüfungen bei Abweichung, Gefährdung oder freiwilliger Prüfung bitte hier klicken! | N23: =IF(O21=1,"","Bis zur Note") -> Bis zur Note | O23: =VLOOKUP($O$20,AO9:AS607,4,FALSE) -> 3.9 | X23: 0 | Y23: 0 | Z23: =IF($F18="L",COUNTIF(T23:W23,"<5"),"") ->  | AO23: 886 | AP23: = | AQ23: 1
N24: =IF(O21=1,"","benötigen Sie weitere") -> benötigen Sie weitere | O24: =VLOOKUP($O$20,AO9:AS607,5,FALSE) -> 1 | Q24: =IF(O21=1,"","Punkte.") -> Punkte. | X24: =SUM(X10:X23) -> 43 | Y24: =SUM(Y10:Y23) ->  | Z24: =SUM(Z10:Z23) -> 0 | AC24: =SUM(AC10:AC23) -> 20 | AG24: Anzahl Noten: | AH24: =COUNT(AE10:AH23)+COUNT(AF21) -> 5 | AO24: 885 | AP24: = | AQ24: 1
AO25: 882 | AP25: = | AQ25: 1
AO26: 881 | AP26: = | AQ26: 1
AO27: 880 | AP27: = | AQ27: 1
AO28: 879 | AP28: = | AQ28: 1
AO29: 878 | AP29: = | AQ29: 1
AO30: 877 | AP30: = | AQ30: 1
AO31: 876 | AP31: = | AQ31: 1
AO32: 875 | AP32: = | AQ32: 1
AO33: 874 | AP33: = | AQ33: 1
AO34: 873 | AP34: = | AQ34: 1
AO35: 872 | AP35: = | AQ35: 1
AO36: 871 | AP36: = | AQ36: 1
AO37: 870 | AP37: = | AQ37: 1
AO38: 869 | AP38: = | AQ38: 1
AO39: 868 | AP39: = | AQ39: 1
AO40: 867 | AP40: = | AQ40: 1
AO41: 866 | AP41: = | AQ41: 1
AO42: 865 | AP42: = | AQ42: 1
AO43: 864 | AP43: = | AQ43: 1
AO44: 863 | AP44: = | AQ44: 1
AO45: 862 | AP45: = | AQ45: 1
AO46: 861 | AP46: = | AQ46: 1
AO47: 860 | AP47: = | AQ47: 1
AO48: 859 | AP48: = | AQ48: 1
AO49: 858 | AP49: = | AQ49: 1
AO50: 857 | AP50: = | AQ50: 1
AO51: 856 | AP51: = | AQ51: 1
AO52: 855 | AP52: = | AQ52: 1
AO53: 854 | AP53: = | AQ53: 1
AO54: 853 | AP54: = | AQ54: 1
AO55: 852 | AP55: = | AQ55: 1
AO56: 851 | AP56: = | AQ56: 1
AO57: 850 | AP57: = | AQ57: 1
AO58: 849 | AP58: = | AQ58: 1
AO59: 848 | AP59: = | AQ59: 1
AO60: 847 | AP60: = | AQ60: 1
AO61: 846 | AP61: = | AQ61: 1
AO62: 845 | AP62: = | AQ62: 1
AO63: 844 | AP63: = | AQ63: 1
AO64: 843 | AP64: = | AQ64: 1
AO65: 842 | AP65: = | AQ65: 1
AO66: 841 | AP66: = | AQ66: 1
AO67: 840 | AP67: = | AQ67: 1
AO68: 839 | AP68: = | AQ68: 1
AO69: 838 | AP69: = | AQ69: 1
AO70: 837 | AP70: = | AQ70: 1
AO71: 836 | AP71: = | AQ71: 1
AO72: 835 | AP72: = | AQ72: 1
AO73: 834 | AP73: = | AQ73: 1
AO74: 833 | AP74: = | AQ74: 1
AO75: 832 | AP75: = | AQ75: 1
AO76: 831 | AP76: = | AQ76: 1
AO77: 830 | AP77: = | AQ77: 1
AO78: 829 | AP78: = | AQ78: 1
AO79: 828 | AP79: = | AQ79: 1
AO80: 827 | AP80: = | AQ80: 1
AO81: 826 | AP81: = | AQ81: 1
AO82: 825 | AP82: = | AQ82: 1
AO83: 824 | AP83: = | AQ83: 1
AO84: 823 | AP84: = | AQ84: 1
AO85: 822 | AP85: = | AQ85: 1.1 | AR85: =AQ85-0.1 -> 1 | AS85: 1
AO86: 821 | AP86: = | AQ86: 1.1 | AR86: =AQ86-0.1 -> 1 | AS86: 2
AO87: 820 | AP87: = | AQ87: 1.1 | AR87: 1 | AS87: 3
AO88: 819 | AP88: = | AQ88: 1.1 | AR88: 1 | AS88: 4
AO89: 818 | AP89: = | AQ89: 1.1 | AR89: 1 | AS89: 5
AO90: 817 | AP90: = | AQ90: 1.1 | AR90: 1 | AS90: 6
AO91: 816 | AP91: = | AQ91: 1.1 | AR91: 1 | AS91: 7
AO92: 815 | AP92: = | AQ92: 1.1 | AR92: 1 | AS92: 8
AO93: 814 | AP93: = | AQ93: 1.1 | AR93: 1 | AS93: 9
AO94: 813 | AP94: = | AQ94: 1.1 | AR94: 1 | AS94: 10
AO95: 812 | AP95: = | AQ95: 1.1 | AR95: 1 | AS95: 11
AO96: 811 | AP96: = | AQ96: 1.1 | AR96: 1 | AS96: 12
AO97: 810 | AP97: = | AQ97: 1.1 | AR97: 1 | AS97: 13
AO98: 809 | AP98: = | AQ98: 1.1 | AR98: 1 | AS98: 14
AO99: 808 | AP99: = | AQ99: 1.1 | AR99: 1 | AS99: 15
AO100: 807 | AP100: = | AQ100: 1.1 | AR100: 1 | AS100: 16
AO101: 806 | AP101: = | AQ101: 1.1 | AR101: 1 | AS101: 17
AO102: 805 | AP102: = | AQ102: 1.1 | AR102: 1 | AS102: 18
AO103: 804 | AP103: = | AQ103: 1.2 | AR103: 1.1 | AS103: 1
AO104: 803 | AP104: = | AQ104: 1.2 | AR104: 1.1 | AS104: 2
AO105: 802 | AP105: = | AQ105: 1.2 | AR105: 1.1 | AS105: 3
AO106: 801 | AP106: = | AQ106: 1.2 | AR106: 1.1 | AS106: 4
AO107: 800 | AP107: = | AQ107: 1.2 | AR107: 1.1 | AS107: 5
AO108: 799 | AP108: = | AQ108: 1.2 | AR108: 1.1 | AS108: 6
AO109: 798 | AP109: = | AQ109: 1.2 | AR109: 1.1 | AS109: 7
AO110: 797 | AP110: = | AQ110: 1.2 | AR110: 1.1 | AS110: 8
AO111: 796 | AP111: = | AQ111: 1.2 | AR111: 1.1 | AS111: 9
AO112: 795 | AP112: = | AQ112: 1.2 | AR112: 1.1 | AS112: 10
AO113: 794 | AP113: = | AQ113: 1.2 | AR113: 1.1 | AS113: 11
AO114: 793 | AP114: = | AQ114: 1.2 | AR114: 1.1 | AS114: 12
AO115: 792 | AP115: = | AQ115: 1.2 | AR115: 1.1 | AS115: 13
AO116: 791 | AP116: = | AQ116: 1.2 | AR116: 1.1 | AS116: 14
AO117: 790 | AP117: = | AQ117: 1.2 | AR117: 1.1 | AS117: 15
AO118: 789 | AP118: = | AQ118: 1.2 | AR118: 1.1 | AS118: 16
AO119: 788 | AP119: = | AQ119: 1.2 | AR119: 1.1 | AS119: 17
AO120: 787 | AP120: = | AQ120: 1.2 | AR120: 1.1 | AS120: 18
AO121: 786 | AP121: = | AQ121: 1.3 | AR121: 1.2 | AS121: 1
AO122: 785 | AP122: = | AQ122: 1.3 | AR122: 1.2 | AS122: 2
AO123: 784 | AP123: = | AQ123: 1.3 | AR123: 1.2 | AS123: 3
AO124: 783 | AP124: = | AQ124: 1.3 | AR124: 1.2 | AS124: 4
AO125: 782 | AP125: = | AQ125: 1.3 | AR125: 1.2 | AS125: 5
AO126: 781 | AP126: = | AQ126: 1.3 | AR126: 1.2 | AS126: 6
AO127: 780 | AP127: = | AQ127: 1.3 | AR127: 1.2 | AS127: 7
AO128: 779 | AP128: = | AQ128: 1.3 | AR128: 1.2 | AS128: 8
AO129: 778 | AP129: = | AQ129: 1.3 | AR129: 1.2 | AS129: 9
AO130: 777 | AP130: = | AQ130: 1.3 | AR130: 1.2 | AS130: 10
AO131: 776 | AP131: = | AQ131: 1.3 | AR131: 1.2 | AS131: 11
AO132: 775 | AP132: = | AQ132: 1.3 | AR132: 1.2 | AS132: 12
AO133: 774 | AP133: = | AQ133: 1.3 | AR133: 1.2 | AS133: 13
AO134: 773 | AP134: = | AQ134: 1.3 | AR134: 1.2 | AS134: 14
AO135: 772 | AP135: = | AQ135: 1.3 | AR135: 1.2 | AS135: 15
AO136: 771 | AP136: = | AQ136: 1.3 | AR136: 1.2 | AS136: 16
AO137: 770 | AP137: = | AQ137: 1.3 | AR137: 1.2 | AS137: 17
AO138: 769 | AP138: = | AQ138: 1.3 | AR138: 1.2 | AS138: 18
AO139: 768 | AP139: = | AQ139: 1.4 | AR139: 1.3 | AS139: 1
AO140: 767 | AP140: = | AQ140: 1.4 | AR140: 1.3 | AS140: 2
AO141: 766 | AP141: = | AQ141: 1.4 | AR141: 1.3 | AS141: 3
AO142: 765 | AP142: = | AQ142: 1.4 | AR142: 1.3 | AS142: 4
AO143: 764 | AP143: = | AQ143: 1.4 | AR143: 1.3 | AS143: 5
AO144: 763 | AP144: = | AQ144: 1.4 | AR144: 1.3 | AS144: 6
AO145: 762 | AP145: = | AQ145: 1.4 | AR145: 1.3 | AS145: 7
AO146: 761 | AP146: = | AQ146: 1.4 | AR146: 1.3 | AS146: 8
AO147: 760 | AP147: = | AQ147: 1.4 | AR147: 1.3 | AS147: 9
AO148: 759 | AP148: = | AQ148: 1.4 | AR148: 1.3 | AS148: 10
AO149: 758 | AP149: = | AQ149: 1.4 | AR149: 1.3 | AS149: 11
AO150: 757 | AP150: = | AQ150: 1.4 | AR150: =AQ150-0.1 -> 1.3 | AS150: 12
AO151: 756 | AP151: = | AQ151: 1.4 | AR151: 1.3 | AS151: 13
AO152: 755 | AP152: = | AQ152: 1.4 | AR152: 1.3 | AS152: 14
AO153: 754 | AP153: = | AQ153: 1.4 | AR153: 1.3 | AS153: 15
AO154: 753 | AP154: = | AQ154: 1.4 | AR154: 1.3 | AS154: 16
AO155: 752 | AP155: = | AQ155: 1.4 | AR155: 1.3 | AS155: 17
AO156: 751 | AP156: = | AQ156: 1.4 | AR156: 1.3 | AS156: 18
AO157: 750 | AP157: = | AQ157: 1.5 | AR157: 1.4 | AS157: 1
AO158: 749 | AP158: = | AQ158: 1.5 | AR158: 1.4 | AS158: 2
AO159: 748 | AP159: = | AQ159: 1.5 | AR159: 1.4 | AS159: 3
AO160: 747 | AP160: = | AQ160: 1.5 | AR160: 1.4 | AS160: 4
AO161: 746 | AP161: = | AQ161: 1.5 | AR161: 1.4 | AS161: 5
AO162: 745 | AP162: = | AQ162: 1.5 | AR162: 1.4 | AS162: 6
AO163: 744 | AP163: = | AQ163: 1.5 | AR163: 1.4 | AS163: 7
AO164: 743 | AP164: = | AQ164: 1.5 | AR164: 1.4 | AS164: 8
AO165: 742 | AP165: = | AQ165: 1.5 | AR165: 1.4 | AS165: 9
AO166: 741 | AP166: = | AQ166: 1.5 | AR166: 1.4 | AS166: 10
AO167: 740 | AP167: = | AQ167: 1.5 | AR167: 1.4 | AS167: 11
AO168: 739 | AP168: = | AQ168: 1.5 | AR168: 1.4 | AS168: 12
AO169: 738 | AP169: = | AQ169: 1.5 | AR169: 1.4 | AS169: 13
AO170: 737 | AP170: = | AQ170: 1.5 | AR170: 1.4 | AS170: 14
AO171: 736 | AP171: = | AQ171: 1.5 | AR171: 1.4 | AS171: 15
AO172: 735 | AP172: = | AQ172: 1.5 | AR172: 1.4 | AS172: 16
AO173: 734 | AP173: = | AQ173: 1.5 | AR173: 1.4 | AS173: 17
AO174: 733 | AP174: = | AQ174: 1.5 | AR174: 1.4 | AS174: 18
AO175: 732 | AP175: = | AQ175: 1.6 | AR175: 1.5 | AS175: 1
AO176: 731 | AP176: = | AQ176: 1.6 | AR176: 1.5 | AS176: 2
AO177: 730 | AP177: = | AQ177: 1.6 | AR177: 1.5 | AS177: 3
AO178: 729 | AP178: = | AQ178: 1.6 | AR178: 1.5 | AS178: 4
AO179: 728 | AP179: = | AQ179: 1.6 | AR179: 1.5 | AS179: 5
AO180: 727 | AP180: = | AQ180: 1.6 | AR180: 1.5 | AS180: 6
AO181: 726 | AP181: = | AQ181: 1.6 | AR181: 1.5 | AS181: 7
AO182: 725 | AP182: = | AQ182: 1.6 | AR182: 1.5 | AS182: 8
AO183: 724 | AP183: = | AQ183: 1.6 | AR183: 1.5 | AS183: 9
AO184: 723 | AP184: = | AQ184: 1.6 | AR184: 1.5 | AS184: 10
AO185: 722 | AP185: = | AQ185: 1.6 | AR185: 1.5 | AS185: 11
AO186: 721 | AP186: = | AQ186: 1.6 | AR186: 1.5 | AS186: 12
AO187: 720 | AP187: = | AQ187: 1.6 | AR187: 1.5 | AS187: 13
AO188: 719 | AP188: = | AQ188: 1.6 | AR188: 1.5 | AS188: 14
AO189: 718 | AP189: = | AQ189: 1.6 | AR189: 1.5 | AS189: 15
AO190: 717 | AP190: = | AQ190: 1.6 | AR190: 1.5 | AS190: 16
AO191: 716 | AP191: = | AQ191: 1.6 | AR191: 1.5 | AS191: 17
AO192: 715 | AP192: = | AQ192: 1.6 | AR192: 1.5 | AS192: 18
AO193: 714 | AP193: = | AQ193: 1.7 | AR193: 1.6 | AS193: 1
AO194: 713 | AP194: = | AQ194: 1.7 | AR194: 1.6 | AS194: 2
AO195: 712 | AP195: = | AQ195: 1.7 | AR195: 1.6 | AS195: 3
AO196: 711 | AP196: = | AQ196: 1.7 | AR196: 1.6 | AS196: 4
AO197: 710 | AP197: = | AQ197: 1.7 | AR197: 1.6 | AS197: 5
AO198: 709 | AP198: = | AQ198: 1.7 | AR198: 1.6 | AS198: 6
AO199: 708 | AP199: = | AQ199: 1.7 | AR199: 1.6 | AS199: 7
AO200: 707 | AP200: = | AQ200: 1.7 | AR200: 1.6 | AS200: 8
AO201: 706 | AP201: = | AQ201: 1.7 | AR201: 1.6 | AS201: 9
... 406 more rows

Sheet Abitur Mündl. Nachprüfungen
N2: Zwischenstand in der Abiturprüfung
N4: Max Müllermeier | O4: Q2 | S4: =NOW() -> 2023-10-31T13:47:16.400
O5: Eingabe in die grünen Felder | AA5: =NOW() -> 2023-10-31T13:47:16.400
N6: Fach | O6: Punkte-durch-schnitt | P6: Prüfungsbewertung in Punkten einfach | R6: Zwischenstand der Punktwertung
C7: Fächergruppe | D7: Fach | E7: Anzurechnende Pflichtkurse | F7: Leistungs kurs=L | G7: Q1.1 | H7: Q1.2 | I7: Q2.1 | J7: Q2.2 | K7: Anzahl Kurse | L7: Summe Punkte | N7: Anzahl eingegebener Noten (35 bis 40) | P7: in Punkten | Q7: =IF(OR(P7<35,P7>40),"Geben Sie mind. 35 und höchstens 40 Noten ein!","") -> Geben Sie mind. 35 und höchstens 40 Noten ein! | AT7: Eingabekontrolle | AY7: Anzahl | BA7: Gültigkeit | BD7: Gültigkeit Fächer
B8: 1 | C8: Deutsch | D8: D | E8: Alle 4 Kurse | K8: =IF(F8="L",(COUNT(G8:J8)-COUNTIF(G8:J8,0))*2,COUNT(G8:J8)-COUNTIF(G8:J8,0)) -> 0 | L8: =IF(F8="L",SUM(G8:J8)*2,SUM(G8:J8)) -> 0 | N8: Anzahl Defizite insgesamt (höchstens 7-8): | P8: schriftlich mündlich | Q8: =IF(COUNTIF(G8:J21,"<5")>7,"Mehr als insgesamt 7, ggf. 8 Defizite (=Kurse unter 5 Punkten) führen zur Nichtzulassung!","") ->  | AT8: =F8 -> 0 | AU8: =IF(G8="","",G8) ->  | AY8: =COUNT(AU8:AX8) -> 0
B9: 2 | C9: Fortgef. Fremdsprache | D9: E | E9: Alle 4 Kurse | K9: 0 | L9: 0 | N9: Anzahl LK-Defizite (höchstens 3): | P9: einfach | Q9: =IF(AA27>3,"Mehr als 3 LK-Defizite (=Kurse unter 5 Punkten) führen zur Nichtzulassung!","") ->  | AT9: =F9 -> 0 | AY9: =COUNT(AU9:AX9) -> 0 | BA9: L | BB9: 15 | BD9: E | BE9: F6 | BF9: F8 | BG9: L6
B10: 3 | C10: Kunst oder Musik | D10: KU | E10: Mind. die 2 besten Kurse | K10: 0 | L10: 0 | N10: Anzahl Kurse mt 0 Punkten (=nicht zugelassen!): | P10: =COUNTIF($F$8:$J$21,0) -> 0 | Q10: =IF(COUNTIF(G8:J21,0)>0,"Kurse mit 0 Punkten führen zur Nichtzulassung!","") ->  | AY10: =IF(COUNT(AU10:AX10)>2,2,COUNT(AU10:AX10)) -> 0 | BB10: 14 | BD10: KU | BE10: MU
B11: 4 | C11: Gesellschaftswissenschaft | D11: PA | E11: Alle 4 Kurse | K11: 0 | L11: 0 | N11: Anzahl angerechneter Kurse (LKx2) | P11: =SUM(K8:K21) -> 0 | Q11: =IF(OR(AT19<2,AT19>2),"Markieren Sie genau 2 Fächer als Leistungskursfach!","") -> Markieren Sie genau 2 Fächer als Leistungskursfach! | T11: Pflichtanrechnung | AT11: =F11 -> 0 | AY11: =COUNT(AU11:AX11) -> 0 | BB11: 13 | BD11: EK | BE11: GE | BF11: PA | BG11: PL
C12: Ggf. Zusatzkurse Geschichte in Q2 oder Äquivalent aus Q1 | D12: GE | E12: Falls belegt: beide Kurse | K12: 0 | L12: 0 | N12: Zwischensumme Punkte | P12: =SUM(L8:L21) -> 0 | Q12: =IF(AND($D$12="GE",AY19<30),"Alle Pflicht-Notenfelder gem. Spalte E müssen ausgefüllt sein!",IF(AY19<28,"Alle Pflicht-Notenfelder gem. Spalte E müssen ausgefüllt sein!","")) -> Alle Pflicht-Notenfelder gem. Spalte E müssen ausgefüllt sein! | T12: =F7 -> Leistungs kurs=L | U12: =G7 -> Q1.1 | V12: =H7 -> Q1.2 | W12: =I7 -> Q2.1 | X12: =J7 -> Q2.2 | Y12: Anzahl Kurse | Z12: Summe Punkte | AA12: Anzahl LK-Defizite | AB12: Die zwei besten Noten je Fach | AD12: Summe der zwei besten Noten je Fach: | AF12: Kurse außerhalb der Pflichtanrechnung | AK12: Die 1 bis 5 besten Kurse außerhalb der Pflichtanrechnung | AP12: 900 | AQ12: = | AR12: 1 | AW12: =IF(I12="","",I12) ->  | AY12: =IF($D$12="","",COUNT(AW12:AX12)) -> 0 | BB12: 12 | BE12: GE
C13: Zusatzkurse Sozialwissensch. in Q2 | D13: SW | E13: Beide Kurse | K13: 0 | L13: 0 | N13: Durchschnittspunktzahl je Kurs | P13: =P12/P11 ->  | Q13: =IF(AND(P7>=35,P7<=39),"Sie können weitere Punktzahlen eingeben, wenn diese über dem Durchschnitt liegen.","") ->  | T13: =IF(NOT(ISBLANK(F8)),F8,"") ->  | U13: =IF(NOT(ISBLANK(G8)),G8,"") ->  | V13: =IF(NOT(ISBLANK(H8)),H8,"") ->  | W13: =IF(NOT(ISBLANK(I8)),I8,"") ->  | X13: =IF(NOT(ISBLANK(J8)),J8,"") ->  | Y13: =IF(T13="L",(COUNT(U13:X13)-COUNTIF(U13:X13,0))*2,COUNT(U13:X13)-COUNTIF(U13:X13,0)) -> 0 | Z13: =IF(T13="L",SUM(U13:X13)*2,SUM(U13:X13)) -> 0 | AA13: =IF($F8="L",COUNTIF(U13:X13,"<5"),"") ->  | AK13: =LARGE($AF$13:$AI$26,1) ->  | AP13: 899 | AQ13: = | AR13: 1 | AY13: =COUNT(AW13:AX13) -> 0 | BB13: 11 | BE13: SW
B14: 5 | C14: Mathematik | D14: M | E14: Alle 4 Kurse | K14: 0 | L14: 0 | N14: Endsumme Punkte für die Zulassung (mind. 200) | Q14: =IF(P30<200,"Für die Zulassung sind mind. 200 Punkte erforderlich!","") ->  | Y14: 0 | Z14: 0 | AK14: =LARGE($AF$13:$AI$26,2) ->  | AP14: 898 | AQ14: = | AR14: 1 | AT14: =F14 -> 0 | AU14: =IF(G14="","",G14) ->  | AY14: =COUNT(AU14:AX14) -> 0 | BB14: 10
B15: 6 | C15: Naturwissenschaft | D15: BI | E15: Alle 4 Kurse | K15: 0 | L15: 0 | N15: =IF(OR(P7<35,P7>40,AND(P7<38,P8>7),P8>8,P9>3,P10>0,P30<200,AT19<2,AT19>2,$AY$20=FALSE),"Nicht zugelassen!","Zugelassen") -> Nicht zugelassen! | Y15: 0 | Z15: 0 | AB15: =LARGE(S15:X15,1) ->  | AC15: =LARGE(U15:X15,2) ->  | AD15: =LARGE(U15:X15,1)+LARGE(U15:X15,2) ->  | AF15: =LARGE($U15:$X15,3) ->  | AG15: =LARGE($U15:$X15,4) ->  | AK15: =LARGE($AF$13:$AI$26,3) ->  | AM15: Berechnnung Abitur-Punktsumme | AP15: 897 | AQ15: = | AR15: 1 | AT15: =F15 -> 0 | AY15: =COUNT(AU15:AX15) -> 0 | BB15: 9 | BD15: BI | BE15: CH | BF15: PH
B16: 7 | C16: Religion oder Philosophie oder anderes Ersatzfach | D16: ER | E16: Mind. die 2 besten Kurse | K16: 0 | L16: 0 | P16: schriftlich | Q16: mündlich | R16: des ZAA fünffach | Y16: 0 | Z16: 0 | AK16: =LARGE($AF$13:$AI$26,4) ->  | AM16: 2s+m/3*5 | AN16: abgerundet | AP16: 896 | AQ16: = | AR16: 1 | AY16: =IF(COUNT(AU16:AX16)>2,2,COUNT(AU16:AX16)) -> 0 | BB16: 8 | BD16: ER | BE16: PL | BF16: EK | BG16: GE | BH16: PA
B17: 8 | C17: Ggf. Sport | D17: SP | K17: 0 | L17: 0 | N17: 1. Abiturfach | O17: x | P17: 3 | Q17: 9 | R17: =AN17 -> 25 | Y17: 0 | Z17: 0 | AK17: =LARGE($AF$13:$AI$26,5) ->  | AM17: =IF(Q17="",P17*5,(P17*2+Q17)/3*5) -> 25 | AN17: =ROUNDDOWN(AM17,0) -> 25 | AP17: 895 | AQ17: = | AR17: 1 | BB17: 7
B18: 9 | C18: Schwerpunktfach: 2. Fremdspr. oder 2. NaWi oder IF | D18: CH | E18: Mind. die 2 Kurse aus Q2 | K18: 0 | L18: 0 | N18: 2. Abiturfach | O18: x | P18: 5 | R18: =AN18 -> 25 | S18: =IF(AND(R17<25,R18<25),"In mindestens 1 LK müssen mindestens 25 Punkte erreicht sein!","") ->  | Y18: 0 | Z18: 0 | AM18: =IF(Q18="",P18*5,(P18*2+Q18)/3*5) -> 25 | AN18: =ROUNDDOWN(AM18,0) -> 25 | AP18: 894 | AQ18: = | AR18: 1 | AT18: =F18 -> 0 | AW18: =IF(I18="","",I18) ->  | AX18: =IF(J18="","",J18) ->  | AY18: =COUNT(AW18:AX18) -> 0 | BB18: 6 | BD18: F6 | BE18: F8 | BF18: L6 | BG18: L0 | BH18: BI | BI18: CH | BJ18: PH | BK18: IF
B19: 10 | C19: Ggf. Projektkurs | D19: PK I | E19: Zählt 2-fach | K19: =(COUNT(H19)-COUNTIF(H19,0))*2 -> 0 | L19: =H19*2 -> 0 | N19: 3. Abiturfach | O19: x | P19: 5 | R19: =AN19 -> 25 | S19: =IF(COUNTIF(R17:R20,"<25")>2,"In mindestens 2 Prüfungsfächern müssen jeweils mindestens 25 Punkte erreicht sein!","") ->  | Y19: 0 | Z19: 0 | AM19: =IF(Q19="",P19*5,(P19*2+Q19)/3*5) -> 25 | AN19: =ROUNDDOWN(AM19,0) -> 25 | AP19: 893 | AQ19: = | AR19: 1 | AT19: =COUNTIF(AT8:AT18,"L") -> 0 | AU19: Anzahl L | AX19: Summe Pflichtnoten | AY19: =SUM(AY8:AY18) -> 0 | BB19: 5 | BE19: PK I | BF19: PK II | BG19: PK III
B20: 11 | C20: Ggf. weiteres Grundkursfach | K20: =IF(F20="L",(COUNT(G20:J20)-COUNTIF(G20:J20,0))*2,COUNT(G20:J20)-COUNTIF(G20:J20,0)) -> 0 | L20: =IF(F20="L",SUM(G20:J20)*2,SUM(G20:J20)) -> 0 | N20: 4. Abiturfach | O20: x | Q20: 5 | R20: =AN20 -> 25 | Y20: 0 | Z20: 0 | AN20: =Q20*5 -> 25 | AP20: 892 | AQ20: = | AR20: 1 | AY20: =IF(AND($D$12="",$AY$19=28),"Richtig",IF(AND($D$12="GE",$AY$19=30),"Richtig",FALSE)) -> FALSE | BB20: 4 | BE20: F6 | BF20: F8 | BG20: L6 | BH20: L0 | BI20: KU | BJ20: MU | BK20: EK | BL20: GE | BM20: PA | BN20: PL | BO20: BI | BP20: CH | BQ20: PH | BR20: IF
B21: 12 | C21: Ggf. weiteres Grundkursfach | K21: =IF(F21="L",(COUNT(G21:J21)-COUNTIF(G21:J21,0))*2,COUNT(G21:J21)-COUNTIF(G21:J21,0)) -> 0 | L21: =IF(F21="L",SUM(G21:J21)*2,SUM(G21:J21)) -> 0 | Y21: 0 | Z21: 0 | AB21: =LARGE(R21:X21,1) ->  | AC21: =LARGE(U21:X21,2) ->  | AD21: =LARGE(U21:X21,1)+LARGE(U21:X21,2) ->  | AF21: =LARGE($U21:$X21,3) ->  | AG21: =LARGE($U21:$X21,4) ->  | AM21: Summe | AN21: =SUM(AN17:AN20) -> 100 | AP21: 891 | AQ21: = | AR21: 1 | BB21: 3 | BE21: F6 | BF21: F8 | BG21: L6 | BH21: L0 | BI21: KU | BJ21: MU | BK21: EK | BL21: GE | BM21: PA | BN21: PL | BO21: BI | BP21: CH | BQ21: PH | BR21: IF
B22: Geben Sie bei den Leistungskursen ein L in Spalte E ein! | N22: =IF(OR(AND(R17<25,R18<25),COUNTIF(R17:R20,"<25")>2,P29<100),"Nicht bestanden!","Bestanden") -> Bestanden | Y22: 0 | Z22: 0 | AF22: =U22 ->  | AG22: =V22 ->  | AH22: =W22 ->  | AI22: =X22 ->  | AP22: 890 | AQ22: = | AR22: 1 | BB22: 2
B23: Geben Sie Ihre Halbjahresnoten als Punktzahlen ein! | R23: =IF(P31<300,"Für das Bestehen der Abiturprüfung sind mind. 300 Gesamtpunkte erforderlich!","") ->  | Y23: 0 | Z23: 0 | AF23: =U23 ->  | AG23: =V23 ->  | AP23: 889 | AQ23: = | AR23: 1 | BB23: 1
B24: Geben Sie bei den Abiturfächern jeweils alle 4 Halbjahresergebnisse ein! | Y24: =(COUNT(V24)-COUNTIF(V24,0))*2 -> 0 | Z24: =V24*2 ->  | AG24: =V24 ->  | AP24: 888 | AQ24: = | AR24: 1 | BB24: 0
U25: =IF(NOT(ISBLANK(G20)),G20,"") ->  | Y25: =IF(T25="L",(COUNT(U25:X25)-COUNTIF(U25:X25,0))*2,COUNT(U25:X25)-COUNTIF(U25:X25,0)) -> 0 | Z25: =IF(T25="L",SUM(U25:X25)*2,SUM(U25:X25)) -> 0 | AF25: =U25 ->  | AP25: 887 | AQ25: = | AR25: 1
T26: =IF(NOT(ISBLANK(F21)),F21,"") ->  | Y26: =IF(T26="L",(COUNT(U26:X26)-COUNTIF(U26:X26,0))*2,COUNT(U26:X26)-COUNTIF(U26:X26,0)) -> 0 | Z26: =IF(T26="L",SUM(U26:X26)*2,SUM(U26:X26)) -> 0 | AA26: =IF($F21="L",COUNTIF(U26:X26,"<5"),"") ->  | AF26: =U26 ->  | AP26: 886 | AQ26: = | AR26: 1
Y27: =SUM(Y13:Y26) -> 0 | Z27: =SUM(Z13:Z26) ->  | AA27: =SUM(AA13:AA26) -> 0 | AD27: =SUM(AD13:AD26) ->  | AH27: Anzahl Noten: | AI27: =COUNT(AF13:AI26)+COUNT(AG24) -> 0 | AP27: 885 | AQ27: = | AR27: 1
AP28: 882 | AQ28: = | AR28: 1
O29: Zwischenstand der Punktwertung im Block II (Abiturbereich) | P29: =AN21 -> 100 | R29: =IF(P29<100,"Für das Bestehen der Abiturprüfung sind mind. 100 Prüfungspunkte erforderlich!","") ->  | AP29: 881 | AQ29: = | AR29: 1
O30: Gesamtpunktzahl aus dem Block I (Zulassungsbereich) | P30: 200
O31: Vorläufige Punktzahl der Gesamtqualifikation | P31: =ROUND(P30+P29,0) -> 300 | AP31: 880 | AQ31: = | AR31: 1
O32: Vorläufige Durchschnittsnote | P32: =VLOOKUP($P$31,AP12:AR611,3,FALSE) -> 4 | AP32: 879 | AQ32: = | AR32: 1
AP33: 878 | AQ33: = | AR33: 1
O34: =IF(P32=1,"","Bis zur Note") -> Bis zur Note | P34: =VLOOKUP($P$31,AP12:AT611,4,FALSE) -> 3.9 | AP34: 877 | AQ34: = | AR34: 1
O35: =IF(P32=1,"","benötigen Sie weitere") -> benötigen Sie weitere | P35: =VLOOKUP($P$31,AP12:AT611,5,FALSE) -> 1 | R35: =IF(P32=1,"","Punkte.") -> Punkte. | S35: Zurück zur Berechnung der Gesamtqualifikation | AP35: 876 | AQ35: = | AR35: 1
AP36: 875 | AQ36: = | AR36: 1
AP37: 874 | AQ37: = | AR37: 1
AP38: 873 | AQ38: = | AR38: 1
AP39: 872 | AQ39: = | AR39: 1
AP40: 871 | AQ40: = | AR40: 1
AP41: 870 | AQ41: = | AR41: 1
AP42: 869 | AQ42: = | AR42: 1
AP43: 868 | AQ43: = | AR43: 1
AP44: 867 | AQ44: = | AR44: 1
AP45: 866 | AQ45: = | AR45: 1
AP46: 865 | AQ46: = | AR46: 1
AP47: 864 | AQ47: = | AR47: 1
AP48: 863 | AQ48: = | AR48: 1
AP49: 862 | AQ49: = | AR49: 1
AP50: 861 | AQ50: = | AR50: 1
AP51: 860 | AQ51: = | AR51: 1
AP52: 859 | AQ52: = | AR52: 1
AP53: 858 | AQ53: = | AR53: 1
AP54: 857 | AQ54: = | AR54: 1
AP55: 856 | AQ55: = | AR55: 1
AP56: 855 | AQ56: = | AR56: 1
AP57: 854 | AQ57: = | AR57: 1
AP58: 853 | AQ58: = | AR58: 1
AP59: 852 | AQ59: = | AR59: 1
AP60: 851 | AQ60: = | AR60: 1
AP61: 850 | AQ61: = | AR61: 1
AP62: 849 | AQ62: = | AR62: 1
AP63: 848 | AQ63: = | AR63: 1
AP64: 847 | AQ64: = | AR64: 1
AP65: 846 | AQ65: = | AR65: 1
AP66: 845 | AQ66: = | AR66: 1
AP67: 844 | AQ67: = | AR67: 1
AP68: 843 | AQ68: = | AR68: 1
AP69: 842 | AQ69: = | AR69: 1
AP70: 841 | AQ70: = | AR70: 1
AP71: 840 | AQ71: = | AR71: 1
AP72: 839 | AQ72: = | AR72: 1
AP73: 838 | AQ73: = | AR73: 1
AP74: 837 | AQ74: = | AR74: 1
AP75: 836 | AQ75: = | AR75: 1
AP76: 835 | AQ76: = | AR76: 1
AP77: 834 | AQ77: = | AR77: 1
AP78: 833 | AQ78: = | AR78: 1
AP79: 832 | AQ79: = | AR79: 1
AP80: 831 | AQ80: = | AR80: 1
AP81: 830 | AQ81: = | AR81: 1
AP82: 829 | AQ82: = | AR82: 1
AP83: 828 | AQ83: = | AR83: 1
AP84: 827 | AQ84: = | AR84: 1
AP85: 826 | AQ85: = | AR85: 1
AP86: 825 | AQ86: = | AR86: 1
AP87: 824 | AQ87: = | AR87: 1
AP88: 823 | AQ88: = | AR88: 1
AP89: 822 | AQ89: = | AR89: 1.1 | AS89: =AR89-0.1 -> 1 | AT89: 1
AP90: 821 | AQ90: = | AR90: 1.1 | AS90: 1 | AT90: 2
AP91: 820 | AQ91: = | AR91: 1.1 | AS91: 1 | AT91: 3
AP92: 819 | AQ92: = | AR92: 1.1 | AS92: 1 | AT92: 4
AP93: 818 | AQ93: = | AR93: 1.1 | AS93: 1 | AT93: 5
AP94: 817 | AQ94: = | AR94: 1.1 | AS94: 1 | AT94: 6
AP95: 816 | AQ95: = | AR95: 1.1 | AS95: 1 | AT95: 7
AP96: 815 | AQ96: = | AR96: 1.1 | AS96: 1 | AT96: 8
AP97: 814 | AQ97: = | AR97: 1.1 | AS97: 1 | AT97: 9
AP98: 813 | AQ98: = | AR98: 1.1 | AS98: 1 | AT98: 10
AP99: 812 | AQ99: = | AR99: 1.1 | AS99: 1 | AT99: 11
AP100: 811 | AQ100: = | AR100: 1.1 | AS100: 1 | AT100: 12
AP101: 810 | AQ101: = | AR101: 1.1 | AS101: 1 | AT101: 13
AP102: 809 | AQ102: = | AR102: 1.1 | AS102: 1 | AT102: 14
AP103: 808 | AQ103: = | AR103: 1.1 | AS103: 1 | AT103: 15
AP104: 807 | AQ104: = | AR104: 1.1 | AS104: 1 | AT104: 16
AP105: 806 | AQ105: = | AR105: 1.1 | AS105: 1 | AT105: 17
AP106: 805 | AQ106: = | AR106: 1.1 | AS106: 1 | AT106: 18
AP107: 804 | AQ107: = | AR107: 1.2 | AS107: 1.1 | AT107: 1
AP108: 803 | AQ108: = | AR108: 1.2 | AS108: 1.1 | AT108: 2
AP109: 802 | AQ109: = | AR109: 1.2 | AS109: 1.1 | AT109: 3
AP110: 801 | AQ110: = | AR110: 1.2 | AS110: 1.1 | AT110: 4
AP111: 800 | AQ111: = | AR111: 1.2 | AS111: 1.1 | AT111: 5
AP112: 799 | AQ112: = | AR112: 1.2 | AS112: 1.1 | AT112: 6
AP113: 798 | AQ113: = | AR113: 1.2 | AS113: 1.1 | AT113: 7
AP114: 797 | AQ114: = | AR114: 1.2 | AS114: 1.1 | AT114: 8
AP115: 796 | AQ115: = | AR115: 1.2 | AS115: 1.1 | AT115: 9
AP116: 795 | AQ116: = | AR116: 1.2 | AS116: 1.1 | AT116: 10
AP117: 794 | AQ117: = | AR117: 1.2 | AS117: 1.1 | AT117: 11
AP118: 793 | AQ118: = | AR118: 1.2 | AS118: 1.1 | AT118: 12
AP119: 792 | AQ119: = | AR119: 1.2 | AS119: 1.1 | AT119: 13
AP120: 791 | AQ120: = | AR120: 1.2 | AS120: 1.1 | AT120: 14
AP121: 790 | AQ121: = | AR121: 1.2 | AS121: 1.1 | AT121: 15
AP122: 789 | AQ122: = | AR122: 1.2 | AS122: 1.1 | AT122: 16
AP123: 788 | AQ123: = | AR123: 1.2 | AS123: 1.1 | AT123: 17
AP124: 787 | AQ124: = | AR124: 1.2 | AS124: 1.1 | AT124: 18
AP125: 786 | AQ125: = | AR125: 1.3 | AS125: 1.2 | AT125: 1
AP126: 785 | AQ126: = | AR126: 1.3 | AS126: 1.2 | AT126: 2
AP127: 784 | AQ127: = | AR127: 1.3 | AS127: 1.2 | AT127: 3
AP128: 783 | AQ128: = | AR128: 1.3 | AS128: 1.2 | AT128: 4
AP129: 782 | AQ129: = | AR129: 1.3 | AS129: 1.2 | AT129: 5
AP130: 781 | AQ130: = | AR130: 1.3 | AS130: 1.2 | AT130: 6
AP131: 780 | AQ131: = | AR131: 1.3 | AS131: 1.2 | AT131: 7
AP132: 779 | AQ132: = | AR132: 1.3 | AS132: 1.2 | AT132: 8
AP133: 778 | AQ133: = | AR133: 1.3 | AS133: 1.2 | AT133: 9
AP134: 777 | AQ134: = | AR134: 1.3 | AS134: 1.2 | AT134: 10
AP135: 776 | AQ135: = | AR135: 1.3 | AS135: 1.2 | AT135: 11
AP136: 775 | AQ136: = | AR136: 1.3 | AS136: 1.2 | AT136: 12
AP137: 774 | AQ137: = | AR137: 1.3 | AS137: 1.2 | AT137: 13
AP138: 773 | AQ138: = | AR138: 1.3 | AS138: 1.2 | AT138: 14
AP139: 772 | AQ139: = | AR139: 1.3 | AS139: 1.2 | AT139: 15
AP140: 771 | AQ140: = | AR140: 1.3 | AS140: 1.2 | AT140: 16
AP141: 770 | AQ141: = | AR141: 1.3 | AS141: 1.2 | AT141: 17
AP142: 769 | AQ142: = | AR142: 1.3 | AS142: 1.2 | AT142: 18
AP143: 768 | AQ143: = | AR143: 1.4 | AS143: 1.3 | AT143: 1
AP144: 767 | AQ144: = | AR144: 1.4 | AS144: 1.3 | AT144: 2
AP145: 766 | AQ145: = | AR145: 1.4 | AS145: 1.3 | AT145: 3
AP146: 765 | AQ146: = | AR146: 1.4 | AS146: 1.3 | AT146: 4
AP147: 764 | AQ147: = | AR147: 1.4 | AS147: 1.3 | AT147: 5
AP148: 763 | AQ148: = | AR148: 1.4 | AS148: 1.3 | AT148: 6
AP149: 762 | AQ149: = | AR149: 1.4 | AS149: 1.3 | AT149: 7
AP150: 761 | AQ150: = | AR150: 1.4 | AS150: 1.3 | AT150: 8
AP151: 760 | AQ151: = | AR151: 1.4 | AS151: 1.3 | AT151: 9
AP152: 759 | AQ152: = | AR152: 1.4 | AS152: 1.3 | AT152: 10
AP153: 758 | AQ153: = | AR153: 1.4 | AS153: =AR153-0.1 -> 1.3 | AT153: 11
AP154: 757 | AQ154: = | AR154: 1.4 | AS154: 1.3 | AT154: 12
AP155: 756 | AQ155: = | AR155: 1.4 | AS155: 1.3 | AT155: 13
AP156: 755 | AQ156: = | AR156: 1.4 | AS156: 1.3 | AT156: 14
AP157: 754 | AQ157: = | AR157: 1.4 | AS157: 1.3 | AT157: 15
AP158: 753 | AQ158: = | AR158: 1.4 | AS158: 1.3 | AT158: 16
AP159: 752 | AQ159: = | AR159: 1.4 | AS159: 1.3 | AT159: 17
AP160: 751 | AQ160: = | AR160: 1.4 | AS160: 1.3 | AT160: 18
AP161: 750 | AQ161: = | AR161: 1.5 | AS161: 1.4 | AT161: 1
AP162: 749 | AQ162: = | AR162: 1.5 | AS162: 1.4 | AT162: 2
AP163: 748 | AQ163: = | AR163: 1.5 | AS163: 1.4 | AT163: 3
AP164: 747 | AQ164: = | AR164: 1.5 | AS164: 1.4 | AT164: 4
AP165: 746 | AQ165: = | AR165: 1.5 | AS165: 1.4 | AT165: 5
AP166: 745 | AQ166: = | AR166: 1.5 | AS166: 1.4 | AT166: 6
AP167: 744 | AQ167: = | AR167: 1.5 | AS167: 1.4 | AT167: 7
AP168: 743 | AQ168: = | AR168: 1.5 | AS168: 1.4 | AT168: 8
AP169: 742 | AQ169: = | AR169: 1.5 | AS169: 1.4 | AT169: 9
AP170: 741 | AQ170: = | AR170: 1.5 | AS170: 1.4 | AT170: 10
AP171: 740 | AQ171: = | AR171: 1.5 | AS171: 1.4 | AT171: 11
AP172: 739 | AQ172: = | AR172: 1.5 | AS172: 1.4 | AT172: 12
AP173: 738 | AQ173: = | AR173: 1.5 | AS173: 1.4 | AT173: 13
AP174: 737 | AQ174: = | AR174: 1.5 | AS174: 1.4 | AT174: 14
AP175: 736 | AQ175: = | AR175: 1.5 | AS175: 1.4 | AT175: 15
AP176: 735 | AQ176: = | AR176: 1.5 | AS176: 1.4 | AT176: 16
AP177: 734 | AQ177: = | AR177: 1.5 | AS177: 1.4 | AT177: 17
AP178: 733 | AQ178: = | AR178: 1.5 | AS178: 1.4 | AT178: 18
AP179: 732 | AQ179: = | AR179: 1.6 | AS179: 1.5 | AT179: 1
AP180: 731 | AQ180: = | AR180: 1.6 | AS180: 1.5 | AT180: 2
AP181: 730 | AQ181: = | AR181: 1.6 | AS181: 1.5 | AT181: 3
AP182: 729 | AQ182: = | AR182: 1.6 | AS182: 1.5 | AT182: 4
AP183: 728 | AQ183: = | AR183: 1.6 | AS183: 1.5 | AT183: 5
AP184: 727 | AQ184: = | AR184: 1.6 | AS184: 1.5 | AT184: 6
AP185: 726 | AQ185: = | AR185: 1.6 | AS185: 1.5 | AT185: 7
AP186: 725 | AQ186: = | AR186: 1.6 | AS186: 1.5 | AT186: 8
AP187: 724 | AQ187: = | AR187: 1.6 | AS187: 1.5 | AT187: 9
AP188: 723 | AQ188: = | AR188: 1.6 | AS188: 1.5 | AT188: 10
AP189: 722 | AQ189: = | AR189: 1.6 | AS189: 1.5 | AT189: 11
AP190: 721 | AQ190: = | AR190: 1.6 | AS190: 1.5 | AT190: 12
AP191: 720 | AQ191: = | AR191: 1.6 | AS191: 1.5 | AT191: 13
AP192: 719 | AQ192: = | AR192: 1.6 | AS192: 1.5 | AT192: 14
AP193: 718 | AQ193: = | AR193: 1.6 | AS193: 1.5 | AT193: 15
AP194: 717 | AQ194: = | AR194: 1.6 | AS194: 1.5 | AT194: 16
AP195: 716 | AQ195: = | AR195: 1.6 | AS195: 1.5 | AT195: 17
AP196: 715 | AQ196: = | AR196: 1.6 | AS196: 1.5 | AT196: 18
AP197: 714 | AQ197: = | AR197: 1.7 | AS197: 1.6 | AT197: 1
AP198: 713 | AQ198: = | AR198: 1.7 | AS198: 1.6 | AT198: 2
AP199: 712 | AQ199: = | AR199: 1.7 | AS199: 1.6 | AT199: 3
AP200: 711 | AQ200: = | AR200: 1.7 | AS200: 1.6 | AT200: 4
AP201: 710 | AQ201: = | AR201: 1.7 | AS201: 1.6 | AT201: 5
AP202: 709 | AQ202: = | AR202: 1.7 | AS202: 1.6 | AT202: 6
... 409 more rows
